bitfinex-derivatives/quotes_ETHF0:USTF0_20250209
["timestamp","ask_amount","ask_price","bid_price","bid_amount"]
[1739100395657,0.5562,2665.8,2665.5,0.5881]
[1739100395854,0.5969,2665.7,2665.5,0.5881]
[1739100396060,1.1518,2665.7,2665.5,0.5881]
[1739100396255,4.00071554,2665.6,2665.5,0.5881]
[1739100402060,3.7667,2665.9,2665.5,0.5881]
[1739100402257,0.5589,2665.9,2665.6,0.5772]
[1739100402468,4.27683593,2665.8,2665.6,0.5772]
[1739100404165,0.5589,2665.9,2665.6,0.5772]
[1739100404166,0.5634,2666.0,2665.6,0.5772]
[1739100404566,4.30318716,2665.9,2665.6,0.5772]
[1739100408875,4.30318716,2665.9,2665.5,0.5881]
[1739100409081,7.51098716,2665.9,2665.5,0.5881]
[1739100409881,7.51098716,2665.9,2665.4,0.6036]
[1739100411179,3.2078,2665.6,2665.3,0.00562419]
[1739100411383,1.7429,2665.5,2665.3,0.58382419]
[1739100411680,5.80356877,2665.5,2665.3,0.58382419]
[1739100415678,5.80356877,2665.5,2665.3,1.16682419]
[1739100417682,5.23416877,2665.5,2665.3,1.16682419]
[1739100418481,0.58,2665.5,2665.3,1.16682419]
[1739100419387,1.1633,2665.5,2665.3,1.16682419]
[1739100421290,3.2078,2665.6,2665.3,1.16682419]
[1739100421790,3.2078,2665.9,2665.3,1.16682419]
[1739100422188,7.54403548,2665.9,2665.3,1.16682419]
[1739100423288,4.33623548,2665.9,2665.4,3.2078]
[1739100423493,0.5626,2666.0,2665.4,3.2078]
[1739100423789,4.8208,2666.3,2665.4,3.2078]
[1739100424090,4.64757259,2666.2,2665.4,3.2078]
[1739100424290,5.25147259,2666.2,2665.4,3.2078]
[1739100424494,4.08817259,2666.2,2665.7,3.2078]
[1739100424794,1.1717,2666.5,2665.8,1.7043]
[1739100425194,4.26853898,2666.2,2665.8,1.7043]
[1739100425693,3.8075,2666.6,2665.8,1.1219]
[1739100425694,1.1717,2666.1,2665.8,1.1219]
[1739100426194,0.5998,2666.0,2665.9,40.8]
[1739100426601,0.5998,2666.0,2665.8,1.1219]
[1739100428091,1.1717,2666.1,2665.8,1.1219]
[1739100431189,1.1717,2666.1,2665.5,40.8]
[1739100431395,1.1717,2666.1,2665.6,0.5829]
[1739100434100,3.2078,2666.3,2665.6,6.8059]
[1739100434297,3.2078,2666.3,2665.6,10.0137]
[1739100437097,4.27308238,2666.2,2665.6,10.0137]
[1739100437297,5.43488238,2666.2,2665.6,10.0137]
[1739100437497,0.5504,2666.1,2665.6,10.0137]
[1739100438791,4.84088238,2666.2,2665.6,10.0137]
[1739100438991,4.27308238,2666.2,2665.6,10.0137]
[1739100439190,3.2078,2666.3,2665.6,10.0137]
[1739100439503,4.92,2666.6,2665.6,10.0137]
[1739100439905,4.06366635,2666.5,2665.6,10.0137]
[1739100445806,4.92,2666.6,2666.0,6.223]
[1739100445807,4.326,2666.6,2666.0,6.223]
[1739100446005,4.326,2666.6,2666.1,1.7236]
[1739100446208,0.5504,2666.6,2666.1,1.7236]
[1739100449616,0.6,2666.5,2666.1,1.7236]
[1739100449912,1.1444,2666.5,2666.1,1.7236]
[1739100452414,4.12161233,2666.4,2666.1,1.7236]
[1739100454113,4.12161233,2666.4,2666.1,1.1237]
[1739100458217,4.12161233,2666.4,2665.8,0.5465]
[1739100458414,4.12161233,2666.4,2665.9,0.5783]
[1739100461520,3.2078,2666.3,2665.7,0.5627]
[1739100461716,3.2078,2666.3,2665.8,0.5502]
[1739100462020,4.75765217,2666.2,2665.8,0.5502]
[1739100462319,1.1411,2666.1,2665.8,0.5502]
[1739100464918,1.1411,2666.1,2665.7,0.5627]
[1739100465121,1.1411,2666.1,2665.7,1.1391]
[1739100466016,7.12228771,2666.0,2665.3,3.21342419]
[1739100466614,7.12228771,2666.0,2665.4,0.5764]
[1739100470625,7.12228771,2666.0,2665.4,1.1523]
[1739100474324,7.12228771,2666.0,2665.4,1.7103]
[1739100479224,3.2078,2665.6,2665.4,1.7103]
[1739100479626,4.18333509,2665.5,2665.4,1.7103]
[1739100482129,3.2078,2665.9,2665.4,1.7103]
[1739100482433,4.11115617,2665.8,2665.4,1.7103]
[1739100482928,1.6846,2665.7,2665.4,1.7103]
[1739100483126,3.2078,2665.6,2665.4,1.7103]
[1739100483324,7.31895617,2665.6,2665.4,1.7103]
[1739100483627,4.11115617,2665.6,2665.4,1.7103]
[1739100484230,7.31895617,2665.6,2665.4,1.1523]
[1739100487029,4.11115617,2665.6,2665.4,1.1523]
[1739100488536,4.11115617,2665.6,2665.3,0.00562419]
[1739100488834,4.11115617,2665.6,2665.3,0.55372419]
[1739100489729,7.31895617,2665.6,2665.3,0.55372419]
[1739100490133,4.11115617,2665.6,2665.3,0.55372419]
[1739100490530,3.2078,2665.9,2665.3,0.55372419]
[1739100490731,0.5587,2665.8,2665.3,0.55372419]
[1739100490929,4.83026329,2665.8,2665.3,0.55372419]
[1739100492633,4.27156329,2665.8,2665.3,0.55372419]
[1739100493133,4.27156329,2665.8,2665.3,6.77672419]
[1739100493339,4.27156329,2665.8,2665.3,0.55372419]
[1739100495634,3.2078,2665.9,2665.3,3.76152419]
[1739100498338,3.2078,2665.9,2665.3,9.98452419]
[1739100499741,3.2078,2665.9,2665.3,10.28541104]
[1739100500648,0.5598,2666.0,2665.3,7.07761104]
[1739100500846,3.2078,2665.9,2665.3,10.28541104]
[1739100506546,0.5598,2666.0,2665.3,10.28541104]
[1739100507446,3.2078,2666.2,2665.6,9.4308]
[1739100507750,3.2078,2666.2,2665.7,1.7089]
[1739100509953,3.2078,2666.4,2665.7,4.9167]
[1739100510443,3.2078,2666.4,2665.7,11.1397]
[1739100510644,3.2078,2666.4,2665.7,12.7517]
[1739100511350,3.2078,2666.4,2665.8,40.8]
[1739100511548,1.7114,2666.6,2665.8,40.8]
[1739100511748,4.9192,2666.6,2665.9,3.2078]
[1739100511948,4.12430181,2666.5,2665.9,3.2078]
[1739100512155,4.12430181,2666.5,2666.0,0.5686]
[1739100512455,4.3614,2666.6,2666.1,1.175]
[1739100513552,1.1536,2666.6,2666.1,1.175]
[1739100516851,1.1536,2666.6,2666.2,40.8]
[1739100517159,1.1536,2666.6,2666.3,0.6018]
[1739100521661,0.6015,2666.5,2666.3,0.6018]
[1739100523655,0.00562419,2666.7,2666.3,0.6018]
[1739100524056,0.00562419,2666.7,2666.3,6.8248]
[1739100524558,0.00562419,2666.7,2666.4,1.611]
[1739100524758,0.00562419,2666.7,2666.5,4.317]
[1739100524949,0.00562419,2666.7,2666.5,10.54]
[1739100525161,3.88075131,2667.0,2666.5,10.54]
[1739100525358,3.88075131,2667.0,2666.8,3.2078]
[1739100525557,3.88075131,2667.0,2666.9,1.7425]
[1739100527562,3.88075131,2667.0,2666.7,0.00562419]
[1739100527764,0.5467,2666.9,2666.7,0.00562419]
[1739100527958,1.1113,2666.9,2666.7,0.00562419]
[1739100529258,1.1113,2666.9,2666.7,0.55792419]
[1739100530863,3.88075131,2667.0,2666.7,0.55792419]
[1739100532060,3.25152012,2667.0,2666.7,0.55792419]
[1739100533057,3.25152012,2667.0,2666.8,3.2078]
[1739100533256,3.25152012,2667.0,2666.9,0.5922]
[1739100534065,3.25152012,2667.0,2666.8,3.2078]
[1739100534270,0.5589,2666.9,2666.7,1.14412419]
[1739100536372,0.5589,2666.9,2666.7,0.00562419]
[1739100536573,0.5875,2666.8,2666.7,0.00562419]
[1739100538470,0.5589,2666.9,2666.7,0.00562419]
[1739100538669,0.5589,2666.9,2666.7,0.58682419]
[1739100538870,0.6039,2667.1,2666.7,0.58682419]
[1739100539170,0.6039,2667.1,2666.8,3.2078]
[1739100542979,0.6039,2667.1,2666.9,0.5796]
[1739100544482,0.6039,2667.1,2666.7,0.00562419]
[1739100544780,0.6039,2667.1,2666.7,0.59222419]
[1739100553880,0.6039,2667.1,2666.8,6.223]
[1739100558790,0.6039,2667.1,2666.9,0.5877]
[1739100559198,0.6039,2667.1,2667.0,0.5705]
[1739100570897,0.56652419,2667.2,2667.0,0.5705]
[1739100573398,0.00562419,2667.2,2667.1,3.2078]
[1739100573792,0.00562419,2667.2,2667.1,44.0078]
[1739100574200,0.00562419,2667.2,2667.1,50.2308]
[1739100578707,0.00562419,2667.2,2667.1,47.023]
[1739100578906,0.00562419,2667.2,2667.1,50.2308]
[1739100598725,0.5698,2667.8,2667.1,50.2308]
[1739100598925,0.5698,2667.8,2667.4,3.2078]
[1739100599523,0.5698,2667.8,2667.5,40.8]
[1739100601029,4.0785789,2667.7,2667.1,6.223]
[1739100601528,4.0785789,2667.7,2667.2,40.8]
[1739100604334,3.7776,2667.8,2667.3,0.5945]
[1739100605431,3.7776,2667.8,2667.3,1.1533]
[1739100608033,3.7776,2667.8,2667.3,0.5945]
[1739100608331,4.21406938,2667.7,2667.2,40.8]
[1739100609733,3.2078,2667.5,2667.2,40.8]
[1739100609932,1.1748,2667.4,2667.2,40.8]
[1739100610137,5.72624921,2667.4,2667.0,3.2078]
[1739100610635,5.72624921,2667.4,2667.1,40.8]
[1739100611030,5.72624921,2667.4,2667.0,3.2078]
[1739100611536,1.7411,2667.4,2667.1,0.5958]
[1739100612735,1.7411,2667.4,2667.1,1.185]
[1739100614337,1.7411,2667.4,2667.0,44.0078]
[1739100614841,1.7411,2667.4,2667.1,0.5802]
[1739100615235,1.7411,2667.4,2667.0,44.0078]
[1739100619434,1.7411,2667.4,2666.9,0.5802]
[1739100619435,3.93377979,2667.3,2666.9,0.5802]
[1739100619637,3.93377979,2667.3,2666.8,0.5802]
[1739100619840,3.93377979,2667.3,2666.9,0.5707]
[1739100620035,3.93377979,2667.3,2666.9,41.3707]
[1739100622736,3.93377979,2667.3,2666.9,40.8]
[1739100622942,3.2078,2667.2,2666.7,3.76512419]
[1739100623443,4.8217125,2667.1,2666.7,44.56512419]
[1739100623638,1.1442,2667.0,2666.7,44.56512419]
[1739100623859,0.5508,2667.1,2666.8,0.5895]
[1739100624236,3.2078,2667.2,2666.8,0.5895]
[1739100624540,3.2078,2667.5,2666.8,0.5895]
[1739100624846,4.28571001,2667.7,2667.0,9.4308]
[1739100625140,4.352,2667.8,2667.0,9.4308]
[1739100625141,3.7833,2667.8,2667.1,8.3837]
[1739100625341,0.5508,2667.6,2667.2,0.5895]
[1739100626441,4.10808139,2667.5,2667.2,0.5895]
[1739100626746,0.5508,2667.6,2667.2,0.5895]
[1739100628538,3.2078,2667.4,2667.1,0.5517]
[1739100628745,1.1378,2667.3,2666.8,1.1469]
[1739100628943,6.03452097,2667.3,2666.8,41.9469]
[1739100630650,5.45222097,2667.3,2666.8,41.9469]
[1739100631137,4.29322097,2667.3,2666.8,48.1699]
[1739100631343,1.609,2667.6,2666.8,48.1699]
[1739100631344,0.6035,2667.5,2666.8,48.1699]
[1739100631739,4.76100478,2667.5,2666.8,48.1699]
[1739100634050,4.76100478,2667.5,2666.8,41.9469]
[1739100636751,3.2078,2667.4,2666.8,41.9469]
[1739100637255,3.96840464,2667.3,2666.8,41.9469]
[1739100637440,3.2078,2667.4,2666.8,41.9469]
[1739100638052,0.5555,2667.6,2667.0,3.2078]
[1739100638253,0.5555,2667.6,2667.1,1.1513]
[1739100638554,0.5555,2667.6,2667.2,0.5784]
[1739100638760,0.5555,2667.6,2667.2,41.3784]
[1739100642255,3.99791519,2667.5,2667.2,0.5784]
[1739100642649,3.99791519,2667.5,2667.2,41.3784]
[1739100642955,0.5555,2667.6,2667.2,41.3784]
[1739100643654,4.02785413,2667.5,2667.2,41.3784]
[1739100644251,0.5555,2667.6,2667.2,41.3784]
[1739100648759,3.97913798,2667.5,2667.2,41.3784]
[1739100648953,4.54953798,2667.5,2667.2,41.3784]
[1739100649961,4.54953798,2667.5,2667.2,0.5784]
[1739100650355,4.54953798,2667.5,2667.1,1.1513]
[1739100650555,3.2078,2667.3,2667.1,1.1513]
[1739100650751,3.2078,2667.3,2666.8,41.3577]
[1739100650956,5.75052115,2667.2,2666.9,0.5909]
[1739100657066,8.95832115,2667.2,2666.9,0.5909]
[1739100660464,8.95832115,2667.2,2666.8,41.3577]
[1739100660465,8.95832115,2667.2,2666.7,0.00562419]
[1739100662173,8.95832115,2667.2,2666.7,0.60612419]
[1739100669576,8.95832115,2667.2,2666.7,0.00562419]
[1739100670169,3.2078,2666.9,2666.3,0.5646]
[1739100670375,3.2078,2666.6,2666.3,0.5646]
[1739100670566,0.5736,2666.5,2666.3,0.5646]
[1739100670773,4.67635116,2666.5,2666.3,0.5646]
[1739100671576,0.5811,2666.4,2666.3,0.5646]
[1739100672380,1.1504,2666.4,2666.3,0.5646]
[1739100672982,1.1504,2666.4,2666.1,40.80562419]
[1739100672983,5.26126547,2666.4,2666.1,40.80562419]
[1739100673578,3.2078,2666.2,2666.1,40.80562419]
[1739100673775,3.2078,2666.2,2666.0,0.5614]
[1739100673776,3.2078,2666.2,2665.8,0.5614]
[1739100673981,3.2078,2666.2,2665.5,0.5805]
[1739100673982,3.2078,2665.9,2665.5,0.5805]
[1739100674277,1.1458,2665.8,2665.6,41.3614]
[1739100674481,5.33314964,2665.8,2665.6,41.3614]
[1739100674780,5.92854964,2665.8,2665.6,41.3614]
[1739100675082,5.92854964,2665.8,2665.6,0.5614]
[1739100676278,5.92854964,2665.8,2665.4,0.00562419]
[1739100676581,3.2078,2665.5,2665.4,0.00562419]
[1739100677084,7.2369894,2665.5,2665.4,0.00562419]
[1739100681088,4.3536,2665.8,2665.4,0.00562419]
[1739100681276,3.2078,2666.1,2665.5,40.8]
[1739100681480,3.2078,2666.1,2665.6,0.5486]
[1739100681684,4.06556849,2666.0,2665.6,0.5486]
[1739100681888,4.06556849,2666.0,2665.7,0.5578]
[1739100682190,4.66636849,2666.0,2665.7,0.5578]
[1739100682488,4.66636849,2666.0,2665.7,1.1436]
[1739100684182,0.5916,2665.9,2665.4,0.00562419]
[1739100684384,1.1694,2665.9,2665.4,0.00562419]
[1739100684689,4.29041122,2665.8,2665.4,0.00562419]
[1739100686990,7.49821122,2665.8,2665.4,0.00562419]
[1739100690078,3.2078,2665.8,2665.4,0.00562419]
[1739100690287,3.2078,2666.1,2665.4,0.00562419]
[1739100691087,5.13970085,2666.0,2665.4,0.00562419]
[1739100692289,0.6002,2665.9,2665.4,0.00562419]
[1739100692688,3.91735921,2665.8,2665.4,0.00562419]
[1739100693191,3.2078,2666.1,2665.4,0.00562419]
[1739100694688,0.5918,2666.0,2665.4,0.00562419]
[1739100695386,3.2078,2666.1,2665.4,0.00562419]
[1739100695587,0.5918,2666.3,2665.4,0.00562419]
[1739100695991,3.94083105,2666.1,2665.4,0.00562419]
[1739100696192,4.53263105,2666.3,2665.4,0.00562419]
[1739100696493,0.5918,2666.3,2665.4,0.00562419]
[1739100696693,4.01011472,2666.2,2665.4,0.00562419]
[1739100696893,0.5741,2666.4,2666.0,3.2078]
[1739100697192,0.5741,2666.4,2665.6,6.224]
[1739100697193,0.5741,2666.4,2666.1,0.5493]
[1739100697396,1.1251,2666.3,2666.1,0.5493]
[1739100698302,1.1251,2666.3,2665.7,1.1554]
[1739100698601,1.1251,2666.3,2665.8,0.5493]
[1739100707906,0.5741,2666.4,2665.8,6.7733]
[1739100708112,0.00562419,2666.5,2666.2,3.2078]
[1739100708409,0.00562419,2666.5,2666.3,7.9184]
[1739100708715,3.2078,2667.2,2666.5,6.224]
[1739100708921,3.2078,2667.2,2666.6,3.2078]
[1739100709412,3.2078,2667.2,2666.6,9.4318]
[1739100709600,3.21342419,2667.2,2666.6,9.4318]
[1739100709808,0.00562419,2667.2,2666.6,9.4318]
[1739100710307,0.00562419,2667.2,2666.9,3.2078]
[1739100710506,0.00562419,2667.2,2667.0,0.5505]
[1739100713714,0.00562419,2667.2,2666.8,0.00562419]
[1739100714018,0.59172419,2667.2,2666.8,0.00562419]
[1739100720412,7.50455491,2667.1,2666.8,0.00562419]
[1739100721015,7.50455491,2667.1,2666.6,3.2078]
[1739100722013,3.2078,2666.8,2666.1,40.8]
[1739100722214,3.2078,2666.5,2666.1,40.8]
[1739100722414,3.2078,2666.5,2666.2,0.00562419]
[1739100722620,4.24535984,2666.4,2665.5,3.2078]
[1739100722815,3.2078,2666.2,2665.5,3.2078]
[1739100723014,0.5471,2666.1,2665.6,40.8]
[1739100723218,4.76506009,2666.1,2665.6,40.8]
[1739100723519,0.5569,2666.0,2665.6,40.8]
[1739100723917,4.21796009,2665.9,2665.6,40.80562419]
[1739100725815,0.5915,2665.8,2665.6,40.80562419]
[1739100726216,4.21796009,2665.9,2665.6,40.80562419]
[1739100726820,3.2078,2666.2,2665.6,40.80562419]
[1739100727417,4.13155408,2666.1,2665.6,40.80562419]
[1739100727821,0.6044,2666.0,2665.6,40.80562419]
[1739100728016,1.1457,2665.9,2665.6,40.80562419]
[1739100728215,5.25674019,2665.9,2665.6,40.80562419]
[1739100728725,5.25674019,2665.9,2665.6,0.00562419]
[1739100729119,5.25674019,2665.9,2665.6,40.80562419]
[1739100731827,5.25674019,2665.9,2665.6,0.00562419]
[1739100732329,1.614,2665.8,2665.6,0.00562419]
[1739100732823,4.09144083,2665.7,2665.6,0.00562419]
[1739100735524,13.29924083,2665.7,2665.2,40.8]
[1739100735725,7.29924083,2665.7,2664.9,0.5463]
[1739100736120,7.29924083,2665.7,2665.0,40.8]
[1739100736726,0.00562419,2665.6,2665.1,0.00562419]
[1739100737125,4.06126539,2665.5,2665.1,0.00562419]
[1739100737328,4.06126539,2665.5,2665.1,0.57792419]
[1739100738327,0.00562419,2665.6,2665.1,0.57792419]
[1739100738633,0.00562419,2665.6,2665.3,3.2078]
[1739100738827,0.00562419,2665.6,2665.4,1.1717]
[1739100741633,0.00562419,2665.6,2665.5,40.8]
[1739100743334,0.00562419,2665.6,2665.4,1.1717]
[1739100743834,0.00562419,2665.6,2665.4,41.9717]
[1739100744427,0.00562419,2665.6,2665.4,1.1717]
[1739100745028,0.00562419,2665.6,2665.1,0.57792419]
[1739100745231,4.24961293,2665.5,2665.1,1.15712419]
[1739100745433,1.1638,2665.4,2665.1,1.15712419]
[1739100750028,0.00562419,2665.6,2665.1,1.15712419]
[1739100752233,4.24513986,2665.5,2665.1,1.15712419]
[1739100754936,0.00562419,2665.6,2665.1,1.15712419]
[1739100757245,4.03398722,2665.5,2665.1,1.15712419]
[1739100757439,0.5853,2665.4,2665.1,1.15712419]
[1739100759944,4.30736132,2665.3,2665.1,0.58482419]
[1739100761241,4.30736132,2665.3,2665.1,0.00562419]
[1739100764146,0.5853,2665.4,2665.1,0.00562419]
[1739100764543,3.91527541,2665.3,2665.1,0.00562419]
[1739100767356,3.2078,2665.2,2664.1,3.2078]
[1739100767556,3.2078,2664.7,2664.1,3.2078]
[1739100767757,1.663,2664.6,2664.2,40.8]
[1739100768056,5.92747372,2664.6,2664.2,40.8]
[1739100772256,3.2078,2664.4,2663.8,3.2078]
[1739100772652,4.04361952,2664.3,2663.8,44.0078]
[1739100773158,0.5909,2664.2,2663.8,44.0078]
[1739100773357,0.5909,2664.2,2663.8,3.2078]
[1739100773659,4.35547022,2664.1,2663.8,3.2078]
[1739100774560,0.00562419,2664.3,2663.9,0.5867]
[1739100775058,0.00562419,2664.3,2664.0,0.5863]
[1739100775259,0.00562419,2664.3,2664.1,0.6017]
[1739100775461,0.00562419,2664.3,2664.1,3.8095]
[1739100777364,1.62,2664.9,2664.1,3.8095]
[1739100777752,3.2078,2665.0,2664.4,3.2078]
[1739100777955,3.2078,2665.0,2664.5,0.597]
[1739100778155,3.2078,2665.0,2664.6,0.5772]
[1739100779365,0.00562419,2665.1,2664.7,44.0078]
[1739100779971,0.00562419,2665.1,2665.0,3.2078]
[1739100780862,0.00562419,2665.1,2664.8,0.5999]
[1739100786992,0.00562419,2665.1,2664.9,3.2078]
[1739100787177,0.00562419,2665.1,2665.0,0.5862]
[1739100789882,0.00562419,2665.1,2664.8,0.5999]
[1739100794984,0.00562419,2665.1,2664.9,3.2078]
[1739100799974,0.565,2665.8,2664.9,17.35849066]
[1739100800187,0.5797,2665.9,2665.4,3.2078]
[1739100800487,0.5797,2665.9,2665.5,1.1469]
[1739100801881,0.00562419,2666.0,2665.5,1.1469]
[1739100802087,0.00562419,2666.0,2665.7,3.2078]
[1739100802882,0.00562419,2666.0,2665.8,40.8]
[1739100803190,0.00562419,2666.0,2665.8,41.3677]
[1739100808981,0.00562419,2666.0,2665.8,0.5677]
[1739100815494,4.33720885,2665.9,2665.4,0.00562419]
[1739100815795,0.5859,2665.8,2665.5,40.8]
[1739100816097,1.1191,2665.7,2665.5,40.8]
[1739100817597,1.1191,2665.7,2665.4,0.00562419]
[1739100817995,1.1191,2665.7,2665.4,40.80562419]
[1739100818395,4.03751923,2665.6,2665.4,40.80562419]
[1739100818597,4.03751923,2665.6,2665.4,0.00562419]
[1739100819998,4.03751923,2665.6,2665.3,3.2078]
[1739100819999,3.2078,2665.5,2664.0,3.2078]
[1739100820297,3.2078,2664.7,2664.0,3.2078]
[1739100820494,0.5991,2664.6,2664.1,41.3702]
[1739100820697,0.5991,2664.6,2664.1,41.9518]
[1739100821201,0.60472419,2664.6,2664.1,41.95742419]
[1739100822311,0.60472419,2664.6,2664.3,3.2078]
[1739100822527,0.00562419,2664.6,2664.3,3.2078]
[1739100826108,0.00562419,2664.6,2664.4,40.8]
[1739100828316,0.00562419,2664.6,2664.5,0.5743]
[1739100828912,0.00562419,2664.6,2664.5,41.3743]
[1739100832723,0.00562419,2664.6,2664.5,47.5983]
[1739100833826,0.5991,2665.0,2664.5,47.5983]
[1739100833827,1.1665,2665.3,2664.5,47.5983]
[1739100834034,0.5508,2665.3,2664.8,3.2078]
[1739100834326,0.5508,2665.3,2664.9,1.1964]
[1739100840635,0.00562419,2665.4,2665.1,3.2078]
[1739100840932,0.00562419,2665.4,2665.2,0.5461]
[1739100841331,0.00562419,2665.4,2665.3,0.5463]
[1739100843435,0.5641,2665.9,2665.3,0.5463]
[1739100843735,0.5641,2665.9,2665.6,3.2078]
[1739100843925,0.5641,2665.9,2665.7,0.5944]
[1739100844131,0.5641,2665.9,2665.7,1.1753]
[1739100844635,0.5641,2665.9,2665.8,40.8]
[1739100847333,0.5641,2665.9,2665.7,0.5944]
[1739100847640,1.7123,2665.9,2665.7,0.5944]
[1739100847834,1.7123,2665.9,2665.5,0.60872419]
[1739100851645,1.7123,2665.9,2665.5,0.00562419]
[1739100853537,4.29343607,2665.8,2665.5,0.00562419]
[1739100856332,3.2078,2665.7,2665.5,0.00562419]
[1739100860347,4.32500395,2665.6,2665.5,0.00562419]
[1739100862045,3.3373,2665.9,2665.5,0.00562419]
[1739100862248,1.7123,2665.9,2665.5,0.00562419]
[1739100863135,0.5641,2665.9,2665.5,0.00562419]
[1739100864342,3.2078,2666.0,2665.5,0.00562419]
[1739100865447,0.5903,2665.9,2665.5,0.00562419]
[1739100872565,3.2078,2665.7,2665.5,0.00562419]
[1739100872958,4.04550688,2665.6,2665.5,0.00562419]
[1739100875658,4.04550688,2665.6,2665.0,1.1434]
[1739100875858,3.2078,2665.4,2665.0,1.1434]
[1739100876355,3.7644,2665.4,2665.0,1.1434]
[1739100878467,4.14524891,2665.3,2664.9,40.80562419]
[1739100878661,4.14524891,2665.3,2664.9,0.00562419]
[1739100879461,3.2078,2665.1,2664.2,3.2078]
[1739100879670,3.2078,2664.8,2664.2,4.3679]
[1739100879868,1.1373,2664.7,2664.3,40.8]
[1739100880072,5.12429074,2664.7,2664.3,40.8]
[1739100881362,3.2078,2664.4,2664.2,0.00562419]
[1739100881566,2.2464,2664.3,2663.2,0.6011]
[1739100881766,3.2078,2663.9,2663.2,0.6011]
[1739100881964,0.5507,2663.8,2663.2,0.6011]
[1739100882166,5.36332047,2663.8,2663.2,0.6011]
[1739100887277,5.36332047,2663.8,2663.3,40.8]
[1739100887472,3.2078,2663.9,2663.4,0.5525]
[1739100887668,2.2204,2664.2,2663.4,1.1254]
[1739100887669,5.9791,2664.2,2663.4,1.1254]
[1739100887976,4.21891614,2664.1,2663.5,3.2078]
[1739100888378,5.4277,2664.2,2663.5,3.2078]
[1739100889081,5.4277,2664.2,2663.4,1.1254]
[1739100890275,5.11642089,2664.1,2663.4,0.5525]
[1739100890981,3.2078,2663.9,2663.4,0.5525]
[1739100892383,3.2078,2663.6,2662.9,3.2078]
[1739100892582,1.7425,2663.5,2662.9,3.2078]
[1739100892781,5.92438249,2663.5,2663.0,0.5824]
[1739100893083,5.93000668,2663.5,2663.0,41.3824]
[1739100897084,5.33520668,2663.5,2663.0,41.3824]
[1739100900488,0.00562419,2663.5,2663.1,0.6003]
[1739100900685,0.00562419,2663.5,2663.2,0.5923]
[1739100901183,0.00562419,2663.5,2663.3,40.8]
[1739100902085,0.00562419,2663.5,2663.1,0.6003]
[1739100902794,0.00562419,2663.5,2663.2,40.8]
[1739100904492,4.24490235,2663.4,2663.0,0.5824]
[1739100904791,3.8001,2663.3,2663.0,0.5824]
[1739100905196,4.10657567,2663.2,2663.0,0.5824]
[1739100905590,0.5923,2663.3,2663.0,0.5824]
[1739100905789,0.00562419,2663.5,2663.1,0.5564]
[1739100907489,0.00562419,2663.5,2663.0,0.5824]
[1739100907691,3.21342419,2663.5,2663.0,0.5824]
[1739100910500,3.928817,2663.4,2663.0,0.5824]
[1739100911197,3.21342419,2663.5,2663.0,0.5824]
[1739100911702,3.21342419,2663.5,2663.1,1.05386172]
[1739100911898,3.21342419,2663.5,2663.1,0.5801]
[1739100912894,0.00562419,2663.5,2663.1,3.7879]
[1739100913196,3.2078,2664.2,2663.4,3.2078]
[1739100913408,3.2078,2664.2,2663.7,3.2078]
[1739100913598,3.2078,2664.2,2663.8,0.5801]
[1739100913789,3.2078,2664.2,2663.9,40.8]
[1739100914208,3.2078,2664.2,2664.0,0.5683]
[1739100914404,3.2078,2664.2,2664.1,0.5943]
[1739100915696,7.39605726,2664.2,2664.1,0.5943]
[1739100919113,3.2078,2664.2,2664.1,0.5943]
[1739100922412,0.00562419,2664.3,2664.1,0.5943]
[1739100922713,0.00562419,2664.3,2664.2,1.1221]
[1739100924107,3.2078,2664.8,2664.2,1.1221]
[1739100925309,3.21342419,2664.8,2664.2,1.1221]
[1739100926917,4.1588165,2664.7,2664.2,1.1221]
[1739100927412,1.1134,2664.6,2664.2,1.1221]
[1739100929612,0.5564,2664.6,2664.2,1.1221]
[1739100930212,3.21342419,2664.8,2664.2,1.1221]
[1739100931215,3.93009389,2664.7,2664.2,1.1221]
[1739100931414,3.93009389,2664.7,2664.2,0.5497]
[1739100931616,0.5739,2664.6,2664.2,0.5497]
[1739100932920,3.93009389,2664.7,2664.2,0.5497]
[1739100933221,3.21342419,2664.8,2664.2,0.5497]
[1739100936527,4.3470503,2664.7,2664.2,0.5497]
[1739100937623,0.5641,2664.6,2664.2,0.5497]
[1739100938126,0.574,2664.5,2664.2,0.5497]
[1739100939025,7.15270844,2664.4,2663.8,0.00562419]
[1739100939227,7.73400844,2664.4,2663.8,0.56072419]
[1739100940433,7.73400844,2664.4,2663.8,0.00562419]
[1739100940828,3.2078,2664.1,2663.8,0.00562419]
[1739100941136,0.5704,2664.0,2663.8,0.00562419]
[1739100941321,4.57643268,2664.0,2663.8,0.00562419]
[1739100941630,0.5704,2664.0,2663.8,0.00562419]
[1739100941829,3.94243018,2663.9,2663.8,0.00562419]
[1739100942027,5.08913018,2663.9,2663.8,0.00562419]
[1739100958955,3.94243018,2663.9,2663.8,0.00562419]
[1739100961963,0.5704,2664.0,2663.8,0.00562419]
[1739100962663,3.2078,2664.1,2663.8,0.00562419]
[1739100965257,3.2078,2664.6,2663.8,0.00562419]
[1739100965663,7.15291445,2664.6,2663.8,0.00562419]
[1739100967161,7.15291445,2664.6,2663.9,40.8]
[1739100974064,3.2078,2664.4,2663.9,40.8]
[1739100977175,0.5859,2664.7,2663.9,40.8]
[1739100977472,3.91449228,2664.6,2663.9,40.8]
[1739100978566,0.5859,2664.7,2663.9,40.8]
[1739100979273,3.21342419,2664.8,2663.9,40.8]
[1739100979664,4.17701987,2664.7,2663.9,40.8]
[1739100979869,3.21342419,2664.8,2663.9,40.8]
[1739100982075,3.21342419,2664.8,2663.9,41.09309357]
[1739100982572,3.21342419,2664.8,2664.0,6.232]
[1739100982984,3.21342419,2664.8,2664.1,0.5525]
[1739100983174,3.97018093,2664.7,2664.2,41.9102]
[1739100983474,3.97018093,2664.7,2664.2,1.1102]
[1739100983674,0.5518,2664.6,2664.2,1.1102]
[1739100985870,3.21342419,2664.8,2664.2,1.1102]